fUST/lending_fUST_20260420
["ID","MTS","AMOUNT","RATE_DAILY","PERIOD"]
[420882233,1776696648725,-1190.0,0.00014521,2]
[420882234,1776696648735,-151.0,0.00014541,2]
[420882235,1776696648744,-325.2970195,0.00014549,2]
[420882236,1776696648754,-380.1936058,0.0001455,2]
[420882237,1776696648763,-1152.0,0.0001464,2]
[420882238,1776696648773,-2352.73837467,0.00014694,2]
[420882239,1776696648783,-500.0,0.00014794,2]
[420882240,1776696648793,-500.0,0.00014794,2]
[420882241,1776696648803,-610.26,0.00014794,2]
[420882242,1776696648812,-602.11,0.00014794,2]
[420882243,1776696648822,-500.0,0.00014794,2]
[420882244,1776696648831,-500.0,0.00014794,2]
[420882245,1776696648841,-953.938,0.00014794,2]
[420882246,1776696648852,-421.31809882,0.00014794,2]
[420882247,1776696648863,-772.70083413,0.00014794,2]
[420882248,1776696648873,-956.57,0.00014794,2]
[420882249,1776696648882,-630.47,0.00014794,2]
[420882250,1776696648892,-500.0,0.00014794,2]
[420882251,1776696648901,-500.0,0.00014794,2]
[420882252,1776696648911,-532.09,0.00014794,2]
[420882253,1776696648921,-622.23,0.00014794,2]
[420882254,1776696648931,-500.0,0.00014794,2]
[420882255,1776696648944,-500.0,0.00014794,2]
[420882256,1776696648954,-334.29893951,0.00014794,2]
[420882257,1776696648964,-1337.19575805,0.00014794,2]
[420882258,1776696648975,-704.3,0.00014794,2]
[420882259,1776696648985,-690.29,0.00014794,2]
[420882260,1776696648996,-3008.6904556,0.00014794,2]
[420882261,1776696649006,-789.51,0.00014794,2]
[420882262,1776696649016,-515.0,0.00014794,2]
[420882263,1776696649026,-832.46,0.00014794,2]
[420882264,1776696649036,-930.35,0.00014794,2]
[420882265,1776696649046,-955.21,0.00014794,2]
[420882266,1776696649055,-726.69,0.00014794,2]
[420882267,1776696649065,-517.82,0.00014794,2]
[420882268,1776696649074,-500.0,0.00014794,2]
[420882269,1776696649084,-1042.5,0.00014794,2]
[420882270,1776696649093,-298.77477546,0.00014794,2]
[420882271,1776696649103,-565.17,0.00014794,2]
[420882272,1776696649113,-1002.87,0.00014794,2]
[420882273,1776696649123,-939.4409361,0.00014794,2]
[420882274,1776696649133,-500.0,0.00014794,2]
[420882275,1776696649143,-3754.00598065,0.00014794,2]
[420882276,1776696649153,-818.35,0.00014794,2]
[420882277,1776696649163,-500.0,0.00014794,2]
[420882278,1776696649172,-3024.12,0.00014794,2]
[420882279,1776696649182,-866.55,0.00014794,2]
[420882280,1776696649193,-180.63123956,0.00014794,2]
[420882281,1776696649203,-500.0,0.00014794,2]
[420882282,1776696649213,-587.08,0.00014794,2]
[420882283,1776696649223,-500.0,0.00014794,2]
[420882284,1776696649232,-500.0,0.00014794,2]
[420882285,1776696649242,-354.26189302,0.00014794,2]
[420882286,1776696649251,-543.95,0.00014794,2]
[420882287,1776696649261,-321.64485657,0.00014794,2]
[420882288,1776696649271,-1768.45,0.00014794,2]
[420882289,1776696649281,-500.0,0.00014794,2]
[420882290,1776696649291,-591.8,0.00014794,2]
[420882291,1776696649300,-822.54,0.00014794,2]
[420882292,1776696649309,-500.0,0.00014794,2]
[420882293,1776696649319,-963.63,0.00014794,2]
[420882294,1776696649328,-500.0,0.00014794,2]
[420882295,1776696649338,-500.0,0.00014794,2]
[420882296,1776696649347,-754.0,0.00014794,2]
[420882297,1776696649357,-500.0,0.00014794,2]
[420882298,1776696649366,-500.0,0.00014794,2]
[420882299,1776696649376,-500.0,0.00014794,2]
[420882300,1776696649385,-550.65,0.00014794,2]
[420882301,1776696649395,-500.0,0.00014794,2]
[420882302,1776696649405,-1156.48,0.00014794,2]
[420882303,1776696649415,-500.0,0.00014794,2]
[420882304,1776696649424,-1510.15,0.00014794,2]
[420882305,1776696649434,-500.0,0.00014794,2]
[420882306,1776696649444,-1473.14,0.00014794,2]
[420882307,1776696649453,-500.0,0.00014794,2]
[420882308,1776696649463,-1885.11,0.00014794,2]
[420882309,1776696649472,-500.0,0.00014794,2]
[420882310,1776696649482,-609.17,0.00014794,2]
[420882311,1776696649492,-828.28,0.00014794,2]
[420882312,1776696649503,-5343.43424915,0.00014794,2]
[420882313,1776696649513,-500.0,0.00014794,2]
[420882314,1776696649523,-968.9,0.00014794,2]
[420882315,1776696649533,-4271.56,0.00014794,2]
[420882316,1776696649543,-844.7,0.00014794,2]
[420882317,1776696649552,-7286.0,0.00014794,2]
[420882318,1776696649562,-500.0,0.00014794,2]
[420882319,1776696649573,-852.55,0.00014794,2]
[420882320,1776696649582,-1256.17,0.00014794,2]
[420882321,1776696649592,-500.0,0.00014794,2]
[420882322,1776696649602,-201.80883973,0.00014794,2]
[420882323,1776696649612,-500.0,0.00014794,2]
[420882324,1776696649622,-3573.36,0.00014794,2]
[420882325,1776696649632,-4539.58,0.00014794,2]
[420882326,1776696649642,-2069.57,0.00014794,2]
[420882327,1776696649652,-6344.31,0.00014794,2]
[420882328,1776696649662,-830.25,0.00014794,2]
[420882329,1776696649672,-500.0,0.00014794,2]
[420882330,1776696649683,-3326.62,0.00014794,2]
[420882331,1776696649693,-7592.59,0.00014794,2]
[420882332,1776696649702,-676.3,0.00014794,2]
[420882333,1776696649714,-1056.46,0.00014794,2]
[420882334,1776696649724,-644.42,0.00014794,2]
[420882335,1776696649734,-996.3,0.00014794,2]
[420882336,1776696649744,-500.0,0.00014794,2]
[420882337,1776696649754,-11307.08,0.00014794,2]
[420882338,1776696649763,-947.12,0.00014794,2]
[420882339,1776696649773,-1605.17,0.00014794,2]
[420882340,1776696649783,-869.48,0.00014794,2]
[420882341,1776696649793,-685.66,0.00014794,2]
[420882342,1776696649803,-2903.7,0.00014794,2]
[420882343,1776696649812,-500.0,0.00014794,2]
[420882344,1776696649822,-500.0,0.00014794,2]
[420882345,1776696649832,-500.0,0.00014794,2]
[420882346,1776696649841,-500.0,0.00014794,2]
[420882347,1776696649851,-500.0,0.00014794,2]
[420882348,1776696649860,-613.26,0.00014794,2]
[420882349,1776696649870,-500.0,0.00014794,2]
[420882350,1776696649880,-1096.81,0.00014794,2]
[420882351,1776696649890,-500.0,0.00014794,2]
[420882352,1776696649900,-1197.32,0.00014794,2]
[420882353,1776696649910,-2560.25,0.00014794,2]
[420882354,1776696649919,-500.0,0.00014794,2]
[420882355,1776696649929,-886.39,0.00014794,2]
[420882356,1776696649939,-678.11,0.00014794,2]
[420882357,1776696649948,-500.0,0.00014794,2]
[420882358,1776696649958,-623.03,0.00014794,2]
[420882359,1776696649968,-968.78,0.00014794,2]
[420882360,1776696649977,-500.0,0.00014794,2]
[420882361,1776696649987,-8847.38,0.00014794,2]
[420882362,1776696649998,-500.0,0.00014794,2]
[420882363,1776696650008,-547.13,0.00014794,2]
[420882364,1776696650018,-3313.74,0.00014794,2]
[420882365,1776696650028,-1371.83,0.00014794,2]
[420882366,1776696650037,-500.0,0.00014794,2]
[420882367,1776696650047,-5074.56,0.00014794,2]
[420882368,1776696650056,-836.22,0.00014794,2]
[420882369,1776696650066,-1505.97,0.00014794,2]
[420882370,1776696650076,-1661.78,0.00014794,2]
[420882371,1776696650085,-1009.93,0.00014794,2]
[420882372,1776696650096,-531.0,0.00014794,2]
[420882373,1776696650106,-627.54,0.00014794,2]
[420882374,1776696650115,-500.0,0.00014794,2]
[420882375,1776696650125,-539.83,0.00014794,2]
[420882376,1776696650135,-743.11,0.00014794,2]
[420882377,1776696650145,-2073.43,0.00014794,2]
[420882378,1776696650154,-554.89,0.00014794,2]
[420882379,1776696650164,-582.62,0.00014794,2]
[420882380,1776696650174,-500.0,0.00014794,2]
[420882381,1776696650184,-2908.99,0.00014794,2]
[420882382,1776696650194,-500.0,0.00014794,2]
[420882383,1776696650203,-701.99,0.00014794,2]
[420882384,1776696650213,-1141.9,0.00014794,2]
[420882385,1776696650223,-1249.46,0.00014794,2]
[420882386,1776696650233,-500.0,0.00014794,2]
[420882387,1776696650242,-707.82,0.00014794,2]
[420882388,1776696650252,-7036.91,0.00014794,2]
[420882389,1776696650262,-2377.27,0.00014794,2]
[420882390,1776696650272,-875.64,0.00014794,2]
[420882391,1776696650282,-6048.3,0.00014794,2]
[420882392,1776696650291,-1882.47,0.00014794,2]
[420882393,1776696650301,-500.0,0.00014794,2]
[420882394,1776696650310,-3034.32,0.00014794,2]
[420882395,1776696650320,-500.0,0.00014794,2]
[420882396,1776696650330,-818.65,0.00014794,2]
[420882397,1776696650340,-699.34,0.00014794,2]
[420882398,1776696650350,-3464.74,0.00014794,2]
[420882399,1776696650359,-4871.73,0.00014794,2]
[420882400,1776696650369,-289.33046044,0.00014794,2]
[420882401,1776696650379,-6287.28,0.00014794,2]
[420882402,1776696650388,-500.0,0.00014794,2]
[420882403,1776696650398,-890.69,0.00014794,2]
[420882404,1776696650407,-500.0,0.00014794,2]
[420882405,1776696650417,-500.0,0.00014794,2]
[420882406,1776696650427,-5009.47,0.00014794,2]
[420882407,1776696650436,-500.0,0.00014794,2]
[420882408,1776696650446,-15915.66,0.00014794,2]
[420882409,1776696650455,-4884.2,0.00014794,2]
[420882410,1776696650465,-500.0,0.00014794,2]
[420882411,1776696650475,-10006.4,0.00014794,2]
[420882412,1776696650484,-4637.64,0.00014794,2]
[420882413,1776696650494,-500.0,0.00014794,2]
[420882414,1776696650503,-500.0,0.00014794,2]
[420882415,1776696650513,-730.92,0.00014794,2]
[420882416,1776696650523,-1363.78,0.00014794,2]
[420882417,1776696650532,-500.0,0.00014794,2]
[420882418,1776696650542,-3657.71,0.00014794,2]
[420882419,1776696650552,-2485.21,0.00014794,2]
[420882420,1776696650561,-1206.45,0.00014794,2]
[420882421,1776696650571,-15895.85,0.00014794,2]
[420882422,1776696650581,-500.0,0.00014794,2]
[420882423,1776696650590,-1632.78,0.00014794,2]
[420882424,1776696650600,-500.0,0.00014794,2]
[420882425,1776696650610,-11810.45,0.00014794,2]
[420882426,1776696650620,-500.78287338,0.00014794,2]
[420882427,1776696650630,-1190.0,0.00014795,2]
[420882428,1776696650639,-1908.279365,0.00014795,2]
[420882429,1776696650649,-1000.0,0.00014821,2]
[420882430,1776696650658,-1000.0,0.00014821,2]
[420882431,1776696650668,-1000.0,0.00014821,2]
[420882432,1776696650677,-500.0,0.00014823,2]
[420882433,1776696650687,-500.0,0.00014823,2]
[420882434,1776696650697,-500.0,0.00014823,2]
[420882435,1776696650707,-167.80258593,0.00014823,2]
[420882436,1776696650717,-2398.4119403,0.00014833,2]
[420882437,1776696650726,-204.0,0.00014946,2]
[420882438,1776696650736,-166.83046213,0.00014963,7]
[420882439,1776696650747,-633.4402,0.00015068,2]
[420882440,1776696650757,-500.0,0.00015068,2]
[420882441,1776696650767,-500.0,0.00015068,2]
[420882442,1776696650776,-610.26,0.00015068,2]
[420882443,1776696650786,-602.11,0.00015068,2]
[420882444,1776696650796,-500.0,0.00015068,2]
[420882445,1776696650805,-173.43369189,0.00015068,2]
[420882446,1776696650815,-956.57,0.00015068,2]
[420882447,1776696650826,-630.47,0.00015068,2]
[420882448,1776696650836,-500.0,0.00015068,2]
[420882449,1776696651033,-500.0,0.00015068,2]
[420882450,1776696651049,-532.09,0.00015068,2]
[420882451,1776696651059,-622.23,0.00015068,2]
[420882452,1776696651069,-500.0,0.00015068,2]
[420882453,1776696651078,-500.0,0.00015068,2]
[420882454,1776696651088,-704.3,0.00015068,2]
[420882455,1776696651097,-690.29,0.00015068,2]
[420882456,1776696651107,-789.51,0.00015068,2]
[420882457,1776696651117,-515.0,0.00015068,2]
[420882458,1776696651127,-832.46,0.00015068,2]
[420882459,1776696651136,-930.35,0.00015068,2]
[420882460,1776696651145,-955.21,0.00015068,2]
[420882461,1776696651155,-726.69,0.00015068,2]
[420882462,1776696651164,-517.82,0.00015068,2]
[420882463,1776696651173,-500.0,0.00015068,2]
[420882464,1776696651183,-1042.5,0.00015068,2]
[420882465,1776696651194,-565.17,0.00015068,2]
[420882466,1776696651203,-1002.87,0.00015068,2]
[420882467,1776696651212,-500.0,0.00015068,2]
[420882468,1776696651221,-818.35,0.00015068,2]
[420882469,1776696651231,-500.0,0.00015068,2]
[420882470,1776696651240,-3024.12,0.00015068,2]
[420882471,1776696651249,-866.55,0.00015068,2]
[420882472,1776696651259,-500.0,0.00015068,2]
[420882473,1776696651268,-587.08,0.00015068,2]
[420882474,1776696651277,-500.0,0.00015068,2]
[420882475,1776696651286,-500.0,0.00015068,2]
[420882476,1776696651295,-543.95,0.00015068,2]
[420882477,1776696651305,-1768.45,0.00015068,2]
[420882478,1776696651314,-500.0,0.00015068,2]
[420882479,1776696651323,-591.8,0.00015068,2]
[420882480,1776696651332,-822.54,0.00015068,2]
[420882481,1776696651341,-500.0,0.00015068,2]
[420882482,1776696651351,-963.63,0.00015068,2]
[420882483,1776696651360,-500.0,0.00015068,2]
[420882484,1776696651369,-500.0,0.00015068,2]
[420882485,1776696651379,-754.0,0.00015068,2]
[420882486,1776696651388,-500.0,0.00015068,2]
[420882487,1776696651398,-500.0,0.00015068,2]
[420882488,1776696651407,-500.0,0.00015068,2]
[420882489,1776696651416,-550.65,0.00015068,2]
[420882490,1776696651426,-500.0,0.00015068,2]
[420882491,1776696651436,-1156.48,0.00015068,2]
[420882492,1776696651445,-500.0,0.00015068,2]
[420882493,1776696651455,-1510.15,0.00015068,2]
[420882494,1776696651464,-500.0,0.00015068,2]
[420882495,1776696651473,-1473.14,0.00015068,2]
[420882496,1776696651484,-500.0,0.00015068,2]
[420882497,1776696651493,-1885.11,0.00015068,2]
[420882498,1776696651502,-500.0,0.00015068,2]
[420882499,1776696651512,-609.17,0.00015068,2]
[420882500,1776696651521,-828.28,0.00015068,2]
[420882501,1776696651531,-500.0,0.00015068,2]
[420882502,1776696651540,-968.9,0.00015068,2]
[420882503,1776696651551,-4271.56,0.00015068,2]
[420882504,1776696651560,-844.7,0.00015068,2]
[420882505,1776696651570,-7286.0,0.00015068,2]
[420882506,1776696651579,-500.0,0.00015068,2]
[420882507,1776696651589,-852.55,0.00015068,2]
[420882508,1776696651598,-1256.17,0.00015068,2]
[420882509,1776696651608,-500.0,0.00015068,2]
[420882510,1776696651618,-500.0,0.00015068,2]
[420882511,1776696651627,-3573.36,0.00015068,2]
[420882512,1776696651637,-4539.58,0.00015068,2]
[420882513,1776696651646,-2069.57,0.00015068,2]
[420882514,1776696651656,-6344.31,0.00015068,2]
[420882515,1776696651665,-830.25,0.00015068,2]
[420882516,1776696651675,-540.46091476,0.00015068,2]
[420882517,1776696651684,-3326.62,0.00015068,2]
[420882518,1776696651694,-7592.59,0.00015068,2]
[420882519,1776696651703,-676.3,0.00015068,2]
[420882520,1776696651712,-1056.46,0.00015068,2]
[420882521,1776696651722,-644.42,0.00015068,2]
[420882522,1776696651732,-996.3,0.00015068,2]
[420882523,1776696651742,-500.0,0.00015068,2]
[420882524,1776696651751,-11307.08,0.00015068,2]
[420882525,1776696651760,-947.12,0.00015068,2]
[420882526,1776696651769,-1605.17,0.00015068,2]
[420882527,1776696651779,-869.48,0.00015068,2]
[420882528,1776696651789,-685.66,0.00015068,2]
[420882529,1776696651798,-2903.7,0.00015068,2]
[420882530,1776696651807,-500.0,0.00015068,2]
[420882531,1776696651817,-500.0,0.00015068,2]
[420882532,1776696651826,-500.0,0.00015068,2]
[420882533,1776696651836,-362.38390521,0.00015068,2]
[420882534,1776696651845,-613.26,0.00015068,2]
[420882535,1776696651854,-500.0,0.00015068,2]
[420882536,1776696651864,-500.0,0.00015068,2]
[420882537,1776696651873,-1096.81,0.00015068,2]
[420882538,1776696651883,-500.0,0.00015068,2]
[420882539,1776696651892,-1197.32,0.00015068,2]
[420882540,1776696651902,-2560.25,0.00015068,2]
[420882541,1776696651911,-500.0,0.00015068,2]
[420882542,1776696651921,-886.39,0.00015068,2]
[420882543,1776696651930,-678.11,0.00015068,2]
[420882544,1776696651939,-500.0,0.00015068,2]
[420882545,1776696651949,-623.03,0.00015068,2]
[420882546,1776696651958,-968.78,0.00015068,2]
[420882547,1776696651969,-500.0,0.00015068,2]
[420882548,1776696651979,-8847.38,0.00015068,2]
[420882549,1776696651988,-500.0,0.00015068,2]
[420882550,1776696651999,-547.13,0.00015068,2]
[420882551,1776696652008,-3313.74,0.00015068,2]
[420882552,1776696652018,-1371.83,0.00015068,2]
[420882553,1776696652027,-500.0,0.00015068,2]
[420882554,1776696652038,-5074.56,0.00015068,2]
[420882555,1776696652047,-836.22,0.00015068,2]
[420882556,1776696652057,-1505.97,0.00015068,2]
[420882557,1776696652067,-1661.78,0.00015068,2]
[420882558,1776696652076,-1009.93,0.00015068,2]
[420882559,1776696652086,-531.0,0.00015068,2]
[420882560,1776696652097,-627.54,0.00015068,2]
[420882561,1776696652107,-500.0,0.00015068,2]
[420882562,1776696652117,-539.83,0.00015068,2]
[420882563,1776696652127,-743.11,0.00015068,2]
[420882564,1776696652139,-2073.43,0.00015068,2]
[420882565,1776696652149,-554.89,0.00015068,2]
[420882566,1776696652160,-582.62,0.00015068,2]
[420882567,1776696652170,-500.0,0.00015068,2]
[420882568,1776696652180,-2908.99,0.00015068,2]
[420882569,1776696652191,-500.0,0.00015068,2]
[420882570,1776696652200,-701.99,0.00015068,2]
[420882571,1776696652211,-1141.9,0.00015068,2]
[420882572,1776696652221,-1249.46,0.00015068,2]
[420882573,1776696652231,-633.02495568,0.00015068,2]
[420882574,1776696652243,-707.82,0.00015068,2]
[420882575,1776696652253,-7036.91,0.00015068,2]
[420882576,1776696652263,-2377.27,0.00015068,2]
[420882577,1776696652273,-875.64,0.00015068,2]
[420882578,1776696652283,-6048.3,0.00015068,2]
[420882579,1776696652292,-1882.47,0.00015068,2]
[420882580,1776696652302,-500.0,0.00015068,2]
[420882581,1776696652311,-3034.32,0.00015068,2]
[420882582,1776696652321,-500.0,0.00015068,2]
[420882583,1776696652331,-818.65,0.00015068,2]
[420882584,1776696652340,-699.34,0.00015068,2]
[420882585,1776696652350,-3464.74,0.00015068,2]
[420882586,1776696652360,-4871.73,0.00015068,2]
[420882587,1776696652370,-6287.28,0.00015068,2]
[420882588,1776696652380,-500.0,0.00015068,2]
[420882589,1776696652389,-890.69,0.00015068,2]
[420882590,1776696652399,-500.0,0.00015068,2]
[420882591,1776696652408,-500.0,0.00015068,2]
[420882592,1776696652418,-5009.47,0.00015068,2]
[420882593,1776696652428,-500.0,0.00015068,2]
[420882594,1776696652439,-15915.66,0.00015068,2]
[420882595,1776696652449,-4884.2,0.00015068,2]
[420882596,1776696652459,-500.0,0.00015068,2]
[420882597,1776696652469,-10006.4,0.00015068,2]
[420882598,1776696652479,-4637.64,0.00015068,2]
[420882599,1776696652489,-500.0,0.00015068,2]
[420882600,1776696652499,-500.0,0.00015068,2]
[420882601,1776696652510,-730.92,0.00015068,2]
[420882602,1776696652519,-1363.78,0.00015068,2]
[420882603,1776696652530,-500.0,0.00015068,2]
[420882604,1776696652540,-3657.71,0.00015068,2]
[420882605,1776696652550,-2485.21,0.00015068,2]
[420882606,1776696652560,-1206.45,0.00015068,2]
[420882607,1776696652570,-15895.85,0.00015068,2]
[420882608,1776696652580,-500.0,0.00015068,2]
[420882609,1776696652589,-500.0,0.00015068,2]
[420882610,1776696652599,-1632.78,0.00015068,2]
[420882611,1776696652609,-11810.45,0.00015068,2]
[420882612,1776696652619,-1190.0,0.00015068,2]
[420882613,1776696652628,-1075.32,0.0001507,2]
[420882614,1776696652638,-184.11,0.00015112,2]
[420882615,1776696652648,-161.972,0.00015205,2]
[420882616,1776696652658,-1000.0,0.0001523,2]
[420882617,1776696652667,-244.0,0.0001523,2]
[420882618,1776696652676,-1156.75,0.00015232,2]
[420882619,1776696652686,-166.71148938,0.00015252,30]
[420882620,1776696652695,-633.4402,0.00015342,2]
[420882621,1776696652705,-500.0,0.00015342,2]
[420882622,1776696652715,-500.0,0.00015342,2]
[420882623,1776696652725,-610.26,0.00015342,2]
[420882624,1776696652734,-602.11,0.00015342,2]
[420882625,1776696652744,-500.0,0.00015342,2]
[420882626,1776696652754,-956.57,0.00015342,2]
[420882627,1776696652763,-630.47,0.00015342,2]
[420882628,1776696652773,-500.0,0.00015342,2]
[420882629,1776696652783,-500.0,0.00015342,2]
[420882630,1776696652792,-532.09,0.00015342,2]
[420882631,1776696652802,-622.23,0.00015342,2]
[420882632,1776696652811,-500.0,0.00015342,2]
[420882633,1776696652820,-500.0,0.00015342,2]
[420882634,1776696652831,-704.3,0.00015342,2]
[420882635,1776696652842,-690.29,0.00015342,2]
[420882636,1776696652852,-789.51,0.00015342,2]
[420882637,1776696652862,-515.0,0.00015342,2]
[420882638,1776696652872,-832.46,0.00015342,2]
[420882639,1776696652882,-930.35,0.00015342,2]
[420882640,1776696652892,-955.21,0.00015342,2]
[420882641,1776696652902,-726.69,0.00015342,2]
[420882642,1776696652912,-517.82,0.00015342,2]
[420882643,1776696652922,-500.0,0.00015342,2]
[420882644,1776696652932,-1042.5,0.00015342,2]
[420882645,1776696652942,-565.17,0.00015342,2]
[420882646,1776696652952,-1002.87,0.00015342,2]
[420882647,1776696652962,-500.0,0.00015342,2]
[420882648,1776696652972,-818.35,0.00015342,2]
[420882649,1776696652983,-500.0,0.00015342,2]
[420882650,1776696652993,-3024.12,0.00015342,2]
[420882651,1776696653003,-866.55,0.00015342,2]
[420882652,1776696653014,-500.0,0.00015342,2]
[420882653,1776696653024,-587.08,0.00015342,2]
[420882654,1776696653034,-500.0,0.00015342,2]
[420882655,1776696653045,-500.0,0.00015342,2]
[420882656,1776696653054,-543.95,0.00015342,2]
[420882657,1776696653063,-1768.45,0.00015342,2]
[420882658,1776696653073,-500.0,0.00015342,2]
[420882659,1776696653083,-591.8,0.00015342,2]
[420882660,1776696653092,-822.54,0.00015342,2]
[420882661,1776696653102,-500.0,0.00015342,2]
[420882662,1776696653111,-963.63,0.00015342,2]
[420882663,1776696653121,-500.0,0.00015342,2]
[420882664,1776696653130,-500.0,0.00015342,2]
[420882665,1776696653142,-500.0,0.00015342,2]
[420882666,1776696653151,-500.0,0.00015342,2]
[420882667,1776696653161,-500.0,0.00015342,2]
[420882668,1776696653170,-754.0,0.00015342,2]
[420882669,1776696653180,-550.65,0.00015342,2]
[420882670,1776696653189,-1156.48,0.00015342,2]
[420882671,1776696653200,-500.0,0.00015342,2]
[420882672,1776696653210,-500.0,0.00015342,2]
[420882673,1776696653219,-1510.15,0.00015342,2]
[420882674,1776696653228,-500.0,0.00015342,2]
[420882675,1776696653238,-1473.14,0.00015342,2]
[420882676,1776696653247,-500.0,0.00015342,2]
[420882677,1776696653257,-1885.11,0.00015342,2]
[420882678,1776696653266,-500.0,0.00015342,2]
[420882679,1776696653275,-609.17,0.00015342,2]
[420882680,1776696653285,-828.28,0.00015342,2]
[420882681,1776696653294,-500.0,0.00015342,2]
[420882682,1776696653303,-968.9,0.00015342,2]
[420882683,1776696653313,-4271.56,0.00015342,2]
[420882684,1776696653322,-844.7,0.00015342,2]
[420882685,1776696653331,-7286.0,0.00015342,2]
[420882686,1776696653379,-500.0,0.00015342,2]
[420882687,1776696653389,-852.55,0.00015342,2]
[420882688,1776696653398,-1256.17,0.00015342,2]
[420882689,1776696653407,-500.0,0.00015342,2]
[420882690,1776696653416,-500.0,0.00015342,2]
[420882691,1776696653426,-3573.36,0.00015342,2]
[420882692,1776696653435,-4539.58,0.00015342,2]
[420882693,1776696653445,-2069.57,0.00015342,2]
[420882694,1776696653454,-6344.31,0.00015342,2]
[420882695,1776696653463,-830.25,0.00015342,2]
[420882696,1776696653472,-3326.62,0.00015342,2]
[420882697,1776696653481,-7592.59,0.00015342,2]
[420882698,1776696653490,-676.3,0.00015342,2]
[420882699,1776696653499,-1056.46,0.00015342,2]
[420882700,1776696653508,-644.42,0.00015342,2]
[420882701,1776696653517,-996.3,0.00015342,2]
[420882702,1776696653526,-500.0,0.00015342,2]
[420882703,1776696653535,-11307.08,0.00015342,2]
[420882704,1776696653545,-947.12,0.00015342,2]
[420882705,1776696653554,-1605.17,0.00015342,2]
[420882706,1776696653563,-869.48,0.00015342,2]
[420882707,1776696653573,-685.66,0.00015342,2]
[420882708,1776696653582,-2903.7,0.00015342,2]
[420882709,1776696653591,-500.0,0.00015342,2]
[420882710,1776696653602,-500.0,0.00015342,2]
[420882711,1776696653611,-613.26,0.00015342,2]
[420882712,1776696653621,-500.0,0.00015342,2]
[420882713,1776696653630,-500.0,0.00015342,2]
[420882714,1776696653639,-1096.81,0.00015342,2]
[420882715,1776696653648,-500.0,0.00015342,2]
[420882716,1776696653657,-1197.32,0.00015342,2]
[420882717,1776696653666,-2560.25,0.00015342,2]
[420882718,1776696653675,-500.0,0.00015342,2]
[420882719,1776696653685,-886.39,0.00015342,2]
[420882720,1776696653694,-678.11,0.00015342,2]
[420882721,1776696653703,-500.0,0.00015342,2]
[420882722,1776696653712,-623.03,0.00015342,2]
[420882723,1776696653722,-968.78,0.00015342,2]
[420882724,1776696653731,-500.0,0.00015342,2]
[420882725,1776696653740,-8847.38,0.00015342,2]
[420882726,1776696653750,-500.0,0.00015342,2]
[420882727,1776696653759,-547.13,0.00015342,2]
[420882728,1776696653768,-3313.74,0.00015342,2]
[420882729,1776696653778,-1371.83,0.00015342,2]
[420882730,1776696653787,-500.0,0.00015342,2]
[420882731,1776696653796,-5074.56,0.00015342,2]
[420882732,1776696653805,-836.22,0.00015342,2]